fUST/lending_fUST_20240916
["ID","MTS","AMOUNT","RATE_DAILY","PERIOD"]
[338320741,1726495849660,-500.0,0.00019178,2]
[338320742,1726495849670,-746.06,0.00019178,2]
[338320743,1726495849679,-607.57,0.00019178,2]
[338320744,1726495849689,-500.0,0.00019178,2]
[338320745,1726495849699,-500.0,0.00019178,2]
[338320746,1726495849709,-500.0,0.00019178,2]
[338320747,1726495849719,-500.0,0.00019178,2]
[338320748,1726495849728,-6578.15,0.00019178,2]
[338320749,1726495849738,-1222.85,0.00019178,2]
[338320750,1726495849748,-511.88209426,0.00019178,2]
[338320751,1726495849758,-500.0,0.00019178,2]
[338320752,1726495849767,-500.0,0.00019178,2]
[338320753,1726495849780,-587.49,0.00019178,2]
[338320754,1726495849789,-500.0,0.00019178,2]
[338320755,1726495849800,-792.67,0.00019178,2]
[338320756,1726495849818,-500.0,0.00019178,2]
[338320757,1726495849829,-1562.15,0.00019178,2]
[338320758,1726495849840,-500.0,0.00019178,2]
[338320759,1726495849849,-500.0,0.00019178,2]
[338320760,1726495849859,-500.0,0.00019178,2]
[338320761,1726495849868,-500.0,0.00019178,2]
[338320762,1726495849878,-432.64981515,0.00019178,2]
[338320763,1726495849887,-690.98,0.00019178,2]
[338320764,1726495849897,-515.56,0.00019178,2]
[338320765,1726495849912,-500.0,0.00019178,2]
[338320766,1726495849927,-500.0,0.00019178,2]
[338320767,1726495849937,-4838.1,0.00019178,2]
[338320768,1726495849948,-500.0,0.00019178,2]
[338320769,1726495849958,-500.0,0.00019178,2]
[338320770,1726495849968,-500.97384337,0.00019178,2]
[338320771,1726495849978,-500.0,0.00019178,2]
[338320772,1726495849989,-641.5,0.00019178,2]
[338320773,1726495849999,-500.0,0.00019178,2]
[338320774,1726495850008,-864.4,0.00019178,2]
[338320775,1726495850018,-2290.26,0.00019178,2]
[338320776,1726495850029,-500.0,0.00019178,2]
[338320777,1726495850041,-500.0,0.00019178,2]
[338320778,1726495850052,-500.0,0.00019178,2]
[338320779,1726495850062,-702.84,0.00019178,2]
[338320780,1726495850072,-500.0,0.00019178,2]
[338320781,1726495850082,-1186.84,0.00019178,2]
[338320782,1726495850092,-500.0,0.00019178,2]
[338320783,1726495850102,-500.0,0.00019178,2]
[338320784,1726495850111,-3657.31,0.00019178,2]
[338320785,1726495850122,-1202.61,0.00019178,2]
[338320786,1726495850132,-500.0,0.00019178,2]
[338320787,1726495850142,-824.75,0.00019178,2]
[338320788,1726495850152,-500.0,0.00019178,2]
[338320789,1726495850161,-500.0,0.00019178,2]
[338320790,1726495850171,-801.2,0.00019178,2]
[338320791,1726495850182,-2263.69,0.00019178,2]
[338320792,1726495850191,-500.0,0.00019178,2]
[338320793,1726495850201,-4858.09,0.00019178,2]
[338320794,1726495850211,-817.06,0.00019178,2]
[338320795,1726495850221,-640.75,0.00019178,2]
[338320796,1726495850231,-1457.75,0.00019178,2]
[338320797,1726495850240,-793.03,0.00019178,2]
[338320798,1726495850252,-500.0,0.00019178,2]
[338320799,1726495850264,-21917.71,0.00019178,2]
[338320800,1726495850275,-1310.1,0.00019178,2]
[338320801,1726495850286,-2210.96,0.00019178,2]
[338320802,1726495850298,-500.0,0.00019178,2]
[338320803,1726495850308,-500.0,0.00019178,2]
[338320804,1726495850318,-500.0,0.00019178,2]
[338320805,1726495850327,-500.81055218,0.00019178,2]
[338320806,1726495850338,-500.0,0.00019178,2]
[338320807,1726495850350,-16813.5,0.00019178,2]
[338320808,1726495850360,-500.0,0.00019178,2]
[338320809,1726495850371,-500.0,0.00019178,2]
[338320810,1726495850382,-500.0,0.00019178,2]
[338320811,1726495850392,-5052.01,0.00019178,2]
[338320812,1726495850404,-649.6,0.00019178,2]
[338320813,1726495850416,-500.0,0.00019178,2]
[338320814,1726495850426,-500.0,0.00019178,2]
[338320815,1726495850437,-500.0,0.00019178,2]
[338320816,1726495850446,-500.0,0.00019178,2]
[338320817,1726495850457,-500.0,0.00019178,2]
[338320818,1726495850466,-500.0,0.00019178,2]
[338320819,1726495850476,-500.0,0.00019178,2]
[338320820,1726495850486,-500.0,0.00019178,2]
[338320821,1726495850496,-500.0,0.00019178,2]
[338320822,1726495850505,-516.08758286,0.00019178,2]
[338320823,1726495850515,-500.0,0.00019178,2]
[338320824,1726495850530,-2796.5,0.00019178,2]
[338320825,1726495850540,-3999.51,0.00019178,2]
[338320826,1726495850552,-500.0,0.00019178,2]
[338320827,1726495850562,-500.0,0.00019178,2]
[338320828,1726495850572,-500.0,0.00019178,2]
[338320829,1726495850582,-500.0,0.00019178,2]
[338320830,1726495850593,-500.0,0.00019178,2]
[338320831,1726495850604,-500.0,0.00019178,2]
[338320832,1726495850614,-500.84350394,0.00019178,2]
[338320833,1726495850624,-852.09,0.00019178,2]
[338320834,1726495850635,-500.0,0.00019178,2]
[338320835,1726495850645,-821.77,0.00019178,2]
[338320836,1726495850655,-500.0,0.00019178,2]
[338320837,1726495850666,-777.44,0.00019178,2]
[338320838,1726495850676,-2581.82,0.00019178,2]
[338320839,1726495850686,-1148.5,0.00019178,2]
[338320840,1726495850696,-762.18,0.00019178,2]
[338320841,1726495850706,-500.0,0.00019178,2]
[338320842,1726495850717,-500.0,0.00019178,2]
[338320843,1726495850727,-2672.78,0.00019178,2]
[338320844,1726495850737,-852.41,0.00019178,2]
[338320845,1726495850747,-500.0,0.00019178,2]
[338320846,1726495850757,-531.69382135,0.00019178,2]
[338320847,1726495850767,-500.0,0.00019178,2]
[338320848,1726495850780,-13233.15,0.00019178,2]
[338320849,1726495850791,-4353.05,0.00019178,2]
[338320850,1726495850802,-839.8,0.00019178,2]
[338320851,1726495850812,-592.24,0.00019178,2]
[338320852,1726495850822,-500.0,0.00019178,2]
[338320853,1726495850832,-2089.74,0.00019178,2]
[338320854,1726495850842,-500.0,0.00019178,2]
[338320855,1726495850854,-500.0,0.00019178,2]
[338320856,1726495850864,-500.0,0.00019178,2]
[338320857,1726495850874,-500.0,0.00019178,2]
[338320858,1726495850884,-2326.81,0.00019178,2]
[338320859,1726495850895,-500.0,0.00019178,2]
[338320860,1726495850905,-942.02,0.00019178,2]
[338320861,1726495850915,-1124.17,0.00019178,2]
[338320862,1726495850924,-500.0,0.00019178,2]
[338320863,1726495850934,-500.0,0.00019178,2]
[338320864,1726495850943,-1318.85,0.00019178,2]
[338320865,1726495850954,-500.0,0.00019178,2]
[338320866,1726495850963,-500.0,0.00019178,2]
[338320867,1726495850973,-500.0,0.00019178,2]
[338320868,1726495850984,-500.0,0.00019178,2]
[338320869,1726495850994,-799.05,0.00019178,2]
[338320870,1726495851005,-500.0,0.00019178,2]
[338320871,1726495851015,-697.06,0.00019178,2]
[338320872,1726495851025,-502.93146895,0.00019178,2]
[338320873,1726495851035,-1665.57,0.00019178,2]
[338320874,1726495851046,-1705.55,0.00019178,2]
[338320875,1726495851056,-500.0,0.00019178,2]
[338320876,1726495851066,-1588.99,0.00019178,2]
[338320877,1726495851077,-4356.61,0.00019178,2]
[338320878,1726495851087,-546.72,0.00019178,2]
[338320879,1726495851097,-812.47,0.00019178,2]
[338320880,1726495851109,-500.0,0.00019178,2]
[338320881,1726495851121,-500.0,0.00019178,2]
[338320882,1726495851131,-501.83314792,0.00019178,2]
[338320883,1726495851141,-509.52241737,0.00019178,2]
[338320884,1726495851151,-500.0,0.00019178,2]
[338320885,1726495851162,-637.49,0.00019178,2]
[338320886,1726495851173,-652.84,0.00019178,2]
[338320887,1726495851184,-500.0,0.00019178,2]
[338320888,1726495851194,-20428.7,0.00019178,2]
[338320889,1726495851204,-500.0,0.00019178,2]
[338320890,1726495851214,-500.0,0.00019178,2]
[338320891,1726495851223,-4425.1,0.00019178,2]
[338320892,1726495851234,-500.0,0.00019178,2]
[338320893,1726495851244,-3192.28,0.00019178,2]
[338320894,1726495851254,-2428.48,0.00019178,2]
[338320895,1726495851264,-500.25974906,0.00019178,2]
[338320896,1726495851274,-500.0,0.00019178,2]
[338320897,1726495851284,-500.0,0.00019178,2]
[338320898,1726495851296,-500.0,0.00019178,2]
[338320899,1726495851306,-1005.71,0.00019178,2]
[338320900,1726495851317,-500.0,0.00019178,2]
[338320901,1726495851327,-500.0,0.00019178,2]
[338320902,1726495851337,-500.0,0.00019178,2]
[338320903,1726495851347,-500.0,0.00019178,2]
[338320904,1726495851357,-860.99,0.00019178,2]
[338320905,1726495851368,-500.0,0.00019178,2]
[338320906,1726495851378,-500.0,0.00019178,2]
[338320907,1726495851390,-500.0,0.00019178,2]
[338320908,1726495851400,-500.0,0.00019178,2]
[338320909,1726495851410,-1373.09,0.00019178,2]
[338320910,1726495851420,-500.0,0.00019178,2]
[338320911,1726495851431,-2497.07,0.00019178,2]
[338320912,1726495851442,-500.0,0.00019178,2]
[338320913,1726495851452,-500.0,0.00019178,2]
[338320914,1726495851462,-500.0,0.00019178,2]
[338320915,1726495851473,-3706.07,0.00019178,2]
[338320916,1726495851482,-481.50461151,0.00019178,2]
[338320917,1726495851493,-500.0,0.00019178,2]
[338320918,1726495851503,-500.0,0.00019178,2]
[338320919,1726495851513,-1359.22,0.00019178,2]
[338320920,1726495851523,-500.0,0.00019178,2]
[338320921,1726495851534,-501.33188802,0.00019178,2]
[338320922,1726495851546,-320.84549613,0.00019178,2]
[338320923,1726495851556,-641.37,0.00019178,2]
[338320924,1726495851565,-2028.92,0.00019178,2]
[338320925,1726495851580,-3330.37,0.00019178,2]
[338320926,1726495851589,-1356.82,0.00019178,2]
[338320927,1726495851600,-500.0,0.00019178,2]
[338320928,1726495851610,-500.0,0.00019178,2]
[338320929,1726495851620,-1456.84,0.00019178,2]
[338320930,1726495851634,-617.10018738,0.00019178,2]
[338320931,1726495851644,-500.0,0.00019178,2]
[338320932,1726495851654,-932.29,0.00019178,2]
[338320933,1726495851664,-500.0,0.00019178,2]
[338320934,1726495851674,-500.0,0.00019178,2]
[338320935,1726495851686,-500.0,0.00019178,2]
[338320936,1726495851695,-509.1,0.00019178,2]
[338320937,1726495851707,-500.0,0.00019178,2]
[338320938,1726495851717,-608.46,0.00019178,2]
[338320939,1726495851727,-690.24,0.00019178,2]
[338320940,1726495851737,-847.65,0.00019178,2]
[338320941,1726495851747,-906.81,0.00019178,2]
[338320942,1726495851757,-500.0,0.00019178,2]
[338320943,1726495851768,-506.87827341,0.00019178,2]
[338320944,1726495851781,-2151.7,0.00019178,2]
[338320945,1726495851793,-1045.07,0.00019178,2]
[338320946,1726495851803,-500.0,0.00019178,2]
[338320947,1726495851813,-500.0,0.00019178,2]
[338320948,1726495851825,-13380.32,0.00019178,2]
[338320949,1726495851921,-500.0,0.00019178,2]
[338320950,1726495851931,-4116.11,0.00019178,2]
[338320951,1726495851942,-892.76,0.00019178,2]
[338320952,1726495851952,-500.0,0.00019178,2]
[338320953,1726495851962,-500.0,0.00019178,2]
[338320954,1726495851972,-500.0,0.00019178,2]
[338320955,1726495851985,-3252.36,0.00019178,2]
[338320956,1726495851996,-500.0,0.00019178,2]
[338320957,1726495852007,-1457.54,0.00019178,2]
[338320958,1726495852016,-2804.76,0.00019178,2]
[338320959,1726495852029,-527.10965793,0.00019178,2]
[338320960,1726495852040,-500.0,0.00019178,2]
[338320961,1726495852050,-501.08567128,0.00019178,2]
[338320962,1726495852059,-8253.1,0.00019178,2]
[338320963,1726495852069,-1795.97,0.00019178,2]
[338320964,1726495852079,-500.0,0.00019178,2]
[338320965,1726495852089,-500.0,0.00019178,2]
[338320966,1726495852099,-500.0,0.00019178,2]
[338320967,1726495852108,-500.0,0.00019178,2]
[338320968,1726495852118,-500.0,0.00019178,2]
[338320969,1726495852127,-500.0,0.00019178,2]
[338320970,1726495852138,-1487.97,0.00019178,2]
[338320971,1726495852147,-527.76,0.00019178,2]
[338320972,1726495852157,-552.07214018,0.00019178,2]
[338320973,1726495852168,-500.0,0.00019178,2]
[338320974,1726495852178,-500.0,0.00019178,2]
[338320975,1726495852187,-500.0,0.00019178,2]
[338320976,1726495852198,-42984.44,0.00019178,2]
[338320977,1726495852208,-500.0,0.00019178,2]
[338320978,1726495852217,-1102.68,0.00019178,2]
[338320979,1726495852227,-984.29,0.00019178,2]
[338320980,1726495852237,-980.32,0.00019178,2]
[338320981,1726495852246,-500.0,0.00019178,2]
[338320982,1726495852257,-500.0,0.00019178,2]
[338320983,1726495852267,-2663.42,0.00019178,2]
[338320984,1726495852276,-500.0,0.00019178,2]
[338320985,1726495852286,-500.0,0.00019178,2]
[338320986,1726495852296,-2786.92,0.00019178,2]
[338320987,1726495852306,-2786.92,0.00019178,2]
[338320988,1726495852316,-194.03462919,0.00019178,2]
[338320989,1726495852326,-2786.92,0.00019178,2]
[338320990,1726495852335,-2786.92,0.00019178,2]
[338320991,1726495852346,-2786.92,0.00019178,2]
[338320992,1726495852356,-2786.92,0.00019178,2]
[338320993,1726495852368,-2786.92,0.00019178,2]
[338320994,1726495852379,-2786.92,0.00019178,2]
[338320995,1726495852389,-512.05,0.00019178,2]
[338320996,1726495852400,-2786.92,0.00019178,2]
[338320997,1726495852409,-168.836282,0.00019178,2]
[338320998,1726495852419,-5143.129993,0.00019178,2]
[338320999,1726495852428,-169.721337,0.00019178,2]
[338321000,1726495852438,-3108.25,0.000192,2]
[338321001,1726495852448,-237.5,0.00019211,2]
[338321002,1726495852458,-237.5,0.00019262,2]
[338321003,1726495852467,-500.0,0.00019452,2]
[338321004,1726495852476,-500.53401689,0.00019452,2]
[338321005,1726495852485,-501.21831164,0.00019452,2]
[338321006,1726495852494,-500.76200455,0.00019452,2]
[338321007,1726495852505,-500.0,0.00019452,2]
[338321008,1726495852514,-629.57,0.00019452,2]
[338321009,1726495852524,-518.14,0.00019452,2]
[338321010,1726495852533,-500.0,0.00019452,2]
[338321011,1726495852542,-250.0,0.00019452,2]
[338321012,1726495852551,-500.0,0.00019452,2]
[338321013,1726495852560,-500.0,0.00019452,2]
[338321014,1726495852570,-500.0,0.00019452,2]
[338321015,1726495852579,-500.0,0.00019452,2]
[338321016,1726495852588,-500.0,0.00019452,2]
[338321017,1726495852597,-605.48,0.00019452,2]
[338321018,1726495852606,-601.69,0.00019452,2]
[338321019,1726495852615,-1312.66,0.00019452,2]
[338321020,1726495852624,-503.27331025,0.00019452,2]
[338321021,1726495852634,-500.0,0.00019452,2]
[338321022,1726495852643,-500.0,0.00019452,2]
[338321023,1726495852652,-500.0,0.00019452,2]
[338321024,1726495852662,-500.0,0.00019452,2]
[338321025,1726495852671,-500.0,0.00019452,2]
[338321026,1726495852680,-500.0,0.00019452,2]
[338321027,1726495852689,-500.0,0.00019452,2]
[338321028,1726495852699,-1499.68,0.00019452,2]
[338321029,1726495852709,-500.0,0.00019452,2]
[338321030,1726495852718,-942.33,0.00019452,2]
[338321031,1726495852727,-500.0,0.00019452,2]
[338321032,1726495852737,-500.0,0.00019452,2]
[338321033,1726495852747,-866.59,0.00019452,2]
[338321034,1726495852756,-500.0,0.00019452,2]
[338321035,1726495852766,-500.0,0.00019452,2]
[338321036,1726495852777,-500.0,0.00019452,2]
[338321037,1726495852790,-500.0,0.00019452,2]
[338321038,1726495852800,-500.0,0.00019452,2]
[338321039,1726495852809,-500.0,0.00019452,2]
[338321040,1726495852819,-500.0,0.00019452,2]
[338321041,1726495852830,-607.49,0.00019452,2]
[338321042,1726495852839,-500.0,0.00019452,2]
[338321043,1726495852848,-1006.16,0.00019452,2]
[338321044,1726495852858,-500.0,0.00019452,2]
[338321045,1726495852868,-500.0,0.00019452,2]
[338321046,1726495852877,-799.53,0.00019452,2]
[338321047,1726495852887,-580.33,0.00019452,2]
[338321048,1726495852898,-654.32,0.00019452,2]
[338321049,1726495852909,-500.0,0.00019452,2]
[338321050,1726495852918,-773.04,0.00019452,2]
[338321051,1726495852928,-500.0,0.00019452,2]
[338321052,1726495852939,-500.0,0.00019452,2]
[338321053,1726495852950,-626.29,0.00019452,2]
[338321054,1726495852960,-500.0,0.00019452,2]
[338321055,1726495852969,-500.0,0.00019452,2]
[338321056,1726495852978,-500.0,0.00019452,2]
[338321057,1726495852988,-664.31,0.00019452,2]
[338321058,1726495852997,-347.22,0.00019452,2]
[338321059,1726495853008,-500.0,0.00019452,2]
[338321060,1726495853020,-548.34,0.00019452,2]
[338321061,1726495853031,-361.44774554,0.00019452,2]
[338321062,1726495853044,-500.0,0.00019452,2]
[338321063,1726495853053,-500.0,0.00019452,2]
[338321064,1726495853063,-1803.75,0.00019452,2]
[338321065,1726495853074,-500.0,0.00019452,2]
[338321066,1726495853083,-500.0,0.00019452,2]
[338321067,1726495853092,-2203.04,0.00019452,2]
[338321068,1726495853101,-500.0,0.00019452,2]
[338321069,1726495853111,-500.0,0.00019452,2]
[338321070,1726495853120,-541.21,0.00019452,2]
[338321071,1726495853130,-1508.5,0.00019452,2]
[338321072,1726495853139,-376.41088878,0.00019452,2]
[338321073,1726495853149,-1091.13,0.00019452,2]
[338321074,1726495853158,-500.0,0.00019452,2]
[338321075,1726495853167,-500.0,0.00019452,2]
[338321076,1726495853176,-712.63,0.00019452,2]
[338321077,1726495853186,-500.0,0.00019452,2]
[338321078,1726495853195,-631.0716947,0.00019452,2]
[338321079,1726495853205,-500.0,0.00019452,2]
[338321080,1726495853215,-642.66,0.00019452,2]
[338321081,1726495853224,-500.0,0.00019452,2]
[338321082,1726495853233,-549.34902174,0.00019452,2]
[338321083,1726495853243,-500.0,0.00019452,2]
[338321084,1726495853254,-774.6,0.00019452,2]
[338321085,1726495853265,-500.0,0.00019452,2]
[338321086,1726495853274,-356.06631256,0.00019452,2]
[338321087,1726495853284,-500.0,0.00019452,2]
[338321088,1726495853295,-1408.36,0.00019452,2]
[338321089,1726495853313,-500.0,0.00019452,2]
[338321090,1726495853323,-500.0,0.00019452,2]
[338321091,1726495853332,-500.0,0.00019452,2]
[338321092,1726495853342,-502.87465303,0.00019452,2]
[338321093,1726495853351,-559.55,0.00019452,2]
[338321094,1726495853361,-1160.09,0.00019452,2]
[338321095,1726495853371,-500.0,0.00019452,2]
[338321096,1726495853380,-451.80306502,0.00019452,2]
[338321097,1726495853389,-500.0,0.00019452,2]
[338321098,1726495853399,-500.0,0.00019452,2]
[338321099,1726495853409,-500.0,0.00019452,2]
[338321100,1726495853419,-1238.51,0.00019452,2]
[338321101,1726495853428,-500.0,0.00019452,2]
[338321102,1726495853438,-943.35,0.00019452,2]
[338321103,1726495853448,-1423.85,0.00019452,2]
[338321104,1726495853457,-500.0,0.00019452,2]
[338321105,1726495853467,-1230.05,0.00019452,2]
[338321106,1726495853477,-500.0,0.00019452,2]
[338321107,1726495853487,-678.01,0.00019452,2]
[338321108,1726495853497,-500.0,0.00019452,2]
[338321109,1726495853507,-742.34,0.00019452,2]
[338321110,1726495853517,-1161.37,0.00019452,2]
[338321111,1726495853527,-546.93443931,0.00019452,2]
[338321112,1726495853537,-504.29242289,0.00019452,2]
[338321113,1726495853547,-500.0,0.00019452,2]
[338321114,1726495853556,-1401.75,0.00019452,2]
[338321115,1726495853566,-568.91077151,0.00019452,2]
[338321116,1726495853575,-567.69,0.00019452,2]
[338321117,1726495853584,-500.0,0.00019452,2]
[338321118,1726495853594,-309.69165795,0.00019452,2]
[338321119,1726495853604,-500.0,0.00019452,2]
[338321120,1726495853614,-698.02,0.00019452,2]
[338321121,1726495853624,-551.25802807,0.00019452,2]
[338321122,1726495853634,-500.0,0.00019452,2]
[338321123,1726495853645,-500.0,0.00019452,2]
[338321124,1726495853654,-500.0,0.00019452,2]
[338321125,1726495853664,-200.0,0.00019452,2]
[338321126,1726495853674,-500.0,0.00019452,2]
[338321127,1726495853686,-500.0,0.00019452,2]
[338321128,1726495853696,-636.79,0.00019452,2]
[338321129,1726495853706,-835.41,0.00019452,2]
[338321130,1726495853718,-500.0,0.00019452,2]
[338321131,1726495853728,-500.0,0.00019452,2]
[338321132,1726495853739,-1904.31,0.00019452,2]
[338321133,1726495853749,-625.45,0.00019452,2]
[338321134,1726495853758,-500.0,0.00019452,2]
[338321135,1726495853770,-500.0,0.00019452,2]
[338321136,1726495853783,-500.0,0.00019452,2]
[338321137,1726495853793,-500.0,0.00019452,2]
[338321138,1726495853811,-1004.25,0.00019452,2]
[338321139,1726495853825,-500.0,0.00019452,2]
[338321140,1726495853835,-838.55,0.00019452,2]
[338321141,1726495853845,-564.08,0.00019452,2]
[338321142,1726495853854,-958.49,0.00019452,2]
[338321143,1726495853864,-500.0,0.00019452,2]
[338321144,1726495853875,-500.0,0.00019452,2]
[338321145,1726495853884,-500.0,0.00019452,2]
[338321146,1726495853894,-853.19,0.00019452,2]
[338321147,1726495853903,-500.0,0.00019452,2]
[338321148,1726495853914,-500.0,0.00019452,2]
[338321149,1726495853924,-929.66,0.00019452,2]
[338321150,1726495853934,-500.0,0.00019452,2]
[338321151,1726495853943,-189.43852238,0.00019452,2]
[338321152,1726495853953,-951.82,0.00019452,2]
[338321153,1726495853963,-500.0,0.00019452,2]
[338321154,1726495853973,-995.22,0.00019452,2]
[338321155,1726495853983,-500.0,0.00019452,2]
[338321156,1726495853993,-531.25,0.00019452,2]
[338321157,1726495854003,-506.05410044,0.00019452,2]
[338321158,1726495854013,-160.39097326,0.00019452,2]
[338321159,1726495854022,-560.25,0.00019452,2]
[338321160,1726495854033,-500.0,0.00019452,2]
[338321161,1726495854044,-717.09,0.00019452,2]
[338321162,1726495854055,-500.0,0.00019452,2]
[338321163,1726495854065,-500.0,0.00019452,2]
[338321164,1726495854074,-677.99,0.00019452,2]
[338321165,1726495854083,-548.47,0.00019452,2]
[338321166,1726495854094,-500.0,0.00019452,2]
[338321167,1726495854105,-500.0,0.00019452,2]
[338321168,1726495854115,-500.0,0.00019452,2]
[338321169,1726495854125,-500.0,0.00019452,2]
[338321170,1726495854134,-500.0,0.00019452,2]
[338321171,1726495854144,-500.0,0.00019452,2]
[338321172,1726495854154,-500.0,0.00019452,2]
[338321173,1726495854163,-791.31,0.00019452,2]
[338321174,1726495854173,-919.63,0.00019452,2]
[338321175,1726495854183,-500.0,0.00019452,2]
[338321176,1726495854195,-500.0,0.00019452,2]
[338321177,1726495854205,-745.92,0.00019452,2]
[338321178,1726495854215,-500.0,0.00019452,2]
[338321179,1726495854225,-500.56302159,0.00019452,2]
[338321180,1726495854234,-500.0,0.00019452,2]
[338321181,1726495854244,-500.0,0.00019452,2]
[338321182,1726495854255,-1923.11,0.00019452,2]
[338321183,1726495854267,-1202.67,0.00019452,2]
[338321184,1726495854277,-1087.44,0.00019452,2]
[338321185,1726495854287,-639.97,0.00019452,2]
[338321186,1726495854299,-598.47,0.00019452,2]
[338321187,1726495854308,-500.0,0.00019452,2]
[338321188,1726495854317,-500.0,0.00019452,2]
[338321189,1726495854328,-500.0,0.00019452,2]
[338321190,1726495854339,-500.0,0.00019452,2]
[338321191,1726495854350,-500.0,0.00019452,2]
[338321192,1726495854360,-500.0,0.00019452,2]
[338321193,1726495854371,-761.88,0.00019452,2]
[338321194,1726495854381,-500.0,0.00019452,2]
[338321195,1726495854391,-676.35,0.00019452,2]
[338321196,1726495854401,-502.47389811,0.00019452,2]
[338321197,1726495854411,-500.0,0.00019452,2]
[338321198,1726495854421,-775.71,0.00019452,2]
[338321199,1726495854430,-500.0,0.00019452,2]
[338321200,1726495854440,-500.0,0.00019452,2]
[338321201,1726495854450,-1804.68,0.00019452,2]
[338321202,1726495854459,-500.0,0.00019452,2]
[338321203,1726495854468,-500.0,0.00019452,2]
[338321204,1726495854478,-500.0,0.00019452,2]
[338321205,1726495854488,-1902.25,0.00019452,2]
[338321206,1726495854497,-560.58071876,0.00019452,2]
[338321207,1726495854507,-500.0,0.00019452,2]
[338321208,1726495854517,-2029.02,0.00019452,2]
[338321209,1726495854528,-880.88,0.00019452,2]
[338321210,1726495854538,-500.0,0.00019452,2]
[338321211,1726495854549,-517.66,0.00019452,2]
[338321212,1726495854559,-500.0,0.00019452,2]
[338321213,1726495854568,-555.73,0.00019452,2]
[338321214,1726495854578,-501.22480224,0.00019452,2]
[338321215,1726495854588,-500.0,0.00019452,2]
[338321216,1726495854597,-1537.01,0.00019452,2]
[338321217,1726495854607,-500.0,0.00019452,2]
[338321218,1726495854617,-500.0,0.00019452,2]
[338321219,1726495854627,-500.0,0.00019452,2]
[338321220,1726495854636,-500.0,0.00019452,2]
[338321221,1726495854646,-1601.83,0.00019452,2]
[338321222,1726495854656,-500.0,0.00019452,2]
[338321223,1726495854666,-1655.65,0.00019452,2]
[338321224,1726495854676,-1639.35,0.00019452,2]
[338321225,1726495854686,-500.0,0.00019452,2]
[338321226,1726495854696,-901.68,0.00019452,2]
[338321227,1726495854706,-500.0,0.00019452,2]
[338321228,1726495854717,-500.0,0.00019452,2]
[338321229,1726495854726,-500.0,0.00019452,2]
[338321230,1726495854736,-500.0,0.00019452,2]
[338321231,1726495854746,-304.70369461,0.00019452,2]
[338321232,1726495854756,-500.0,0.00019452,2]
[338321233,1726495854766,-156.32992232,0.00019452,2]
[338321234,1726495854778,-567.63,0.00019452,2]
[338321235,1726495854792,-1391.54,0.00019452,2]
[338321236,1726495854803,-500.0,0.00019452,2]
[338321237,1726495854813,-500.0,0.00019452,2]
[338321238,1726495854822,-500.0,0.00019452,2]
[338321239,1726495854832,-501.53301838,0.00019452,2]
[338321240,1726495854842,-500.0,0.00019452,2]